[Event "4th ChessMates Murmansk 2020"]
[Site "Murmansk"]
[Date "2020.03.13"]
[Round "1.27"]
[White "Abbasov, Aziz"]
[Black "Baranov, Ivan"]
[Result "0-1"]
[ECO "A01"]
[WhiteElo "1478"]
[BlackElo "1671"]
[Annotator "NA RC"]
[PlyCount "84"]
[EventDate "2020.03.13"]
[EventType "team-tourn"]
[EventCountry "RUS"]
[SourceTitle "playchess.com"]
[Source "ChessBase"]
[SourceQuality "1"]
[TimeControl "5400+30"]

1. b3 {[%emt 0:00:00]} Nf6 {[%emt 0:00:33]} 2. Bb2 {[%emt 0:00:00]} c5 {[%emt 0:02:56]} 3. e3 {[%emt 0:01:19]} d6 {[%emt 0:06:35]} 4. d4 {[%emt 0:04:19]} cxd4 {[%emt 0:00:37]} 5. exd4 {[%emt 0:00:47]} g6 {[%emt 0:00:37]} 6. Nf3 {[%emt 0:01:55]} Bg7 {[%emt 0:03:45]} 7. Bb5+ {[%emt 0:04:21]} Nbd7 {[%emt 0:07:31]} 8. O-O {[%emt 0:02:06]} a6 {[%emt 0:00:06]} 9. Bxd7+ {[%emt 0:08:41]} Qxd7 {[%emt 0:00:33]} 10. Re1 {[%emt 0:06:07]} O-O {[%emt 0:01:10]} 11. Nbd2 {[%emt 0:02:26]} b5 {[%emt 0:09:23]} 12. Qe2 {[%emt 0:05:45]} Re8 {[%emt 0:03:00]} 13. c4 {[%emt 0:07:45]} Bb7 {[%emt 0:12:06]} 14. Rac1 {[%emt 0:08:37]} e6 {[%emt 0:07:46]} 15. a3 {[%emt 0:05:43]} Rab8 {[%emt 0:07:58]} 16. Ba1 {[%emt 0:05:00]} bxc4 {[%emt 0:03:34]} 17. Nxc4 {[%emt 0:02:33]} Bd5 {[%emt 0:02:57]} 18. b4 {[%emt 0:00:21]} Bh6 {[%emt 0:03:47]} 19. Ne3 {[%emt 0:02:44]} Qb7 {[%emt 0:03:38]} 20. Bc3 {[%emt 0:04:12]} Bxf3 {[%emt 0:03:34]} 21. Qxf3 {[%emt 0:00:28]} Qxf3 {[%emt 0:00:11]} 22. gxf3 {[%emt 0:00:09]} Rec8 {[%emt 0:03:05]} 23. Bd2 {[%emt 0:01:07]} Nh5 {[%emt 0:01:53]} 24. Nf1 {[%emt 0:07:19]} Bxd2 {[%emt 0:03:11]} 25. Nxd2 {[%emt 0:00:22]} Nf4 {[%emt 0:00:31]} 26. Rxc8+ {[%emt 0:01:25]} Rxc8 {[%emt 0:00:10]} 27. Ne4 {[%emt 0:00:05]} Rc6 {[%emt 0:01:27]} 28. h4 {[%emt 0:06:37]} f5 {[%emt 0:01:31]} 29. Ng5 {[%emt 0:02:00]} d5 {[%emt 0:00:29]} 30. Kh2 {[%emt 0:00:07]} h6 {[%emt 0:00:07]} 31. Nh3 {[%emt 0:00:08]} Nxh3 {[%emt 0:01:53]} 32. Kxh3 {[%emt 0:00:04]} Kf7 {[%emt 0:00:04]} 33. Kg3 {[%emt 0:00:28]} Rc4 {[%emt 0:00:30]} 34. Rd1 {[%emt 0:01:24]} Rc3 {[%emt 0:00:04]} 35. a4 {[%emt 0:00:04]} Rb3 {[%emt 0:00:09]} 36. b5 {[%emt 0:00:12]} axb5 {[%emt 0:00:03]} 37. axb5 {[%emt 0:00:06]} Rxb5 {[%emt 0:00:01]} 38. Kf4 {[%emt 0:00:38]} Kf6 {[%emt 0:00:02]} 39. Kg3 {[%emt 0:01:51]} Rb3 {[%emt 0:01:11]} 40. Kf4 {[%emt 0:02:28]} g5+ {[%emt 0:00:19]} 41. hxg5+ {[%emt 0:00:26]} hxg5+ {[%emt 0:00:02]} 42. Kg3 {[%emt 0:00:07]} g4 {[%emt 0:00:08]} 0-1

[Event "4th ChessMates Murmansk 2020"]
[Site "Murmansk"]
[Date "2020.03.13"]
[Round "1.28"]
[White "Chervyakova, Tatiana"]
[Black "Khon, Ilya"]
[Result "1-0"]
[ECO "D30"]
[WhiteElo "1489"]
[BlackElo "1223"]
[Annotator "NA RC"]
[PlyCount "51"]
[EventDate "2020.03.13"]
[EventType "team-tourn"]
[EventCountry "RUS"]
[SourceTitle "playchess.com"]
[Source "ChessBase"]
[SourceQuality "1"]
[TimeControl "5400+30"]

1. d4 {[%emt 0:00:00]} d5 {[%emt 0:00:00]} 2. c4 {[%emt 0:00:00]} e6 {[%emt 0:00:00]} 3. Nf3 {[%emt 0:00:02]} c5 {[%emt 0:00:02]} 4. e3 {[%emt 0:00:43]} Nc6 {[%emt 0:00:37]} 5. Nc3 {[%emt 0:00:52]} Nf6 {[%emt 0:00:52]} 6. Be2 {[%emt 0:01:41]} Be7 {[%emt 0:06:55]} 7. O-O {[%emt 0:02:00]} O-O {[%emt 0:00:07]} 8. b3 {[%emt 0:04:02]} b6 {[%emt 0:11:37]} 9. Bb2 {[%emt 0:01:39]} Bb7 {[%emt 0:08:02]} 10. Rc1 {[%emt 0:01:04]} Rc8 {[%emt 0:09:42]} 11. Re1 {[%emt 0:13:03]} h6 {[%emt 0:07:05]} 12. Bf1 {[%emt 0:03:14]} Qd7 {[%emt 0:04:56]} 13. cxd5 {[%emt 0:02:43]} Nxd5 {[%emt 0:03:05]} 14. Nxd5 {[%emt 0:01:43]} Qxd5 {[%emt 0:03:15]} 15. dxc5 {[%emt 0:09:07]} Qxd1 {[%emt 0:01:18]} 16. Rexd1 {[%emt 0:00:24]} Bxc5 {[%emt 0:00:20]} 17. Rd7 {[%emt 0:02:23]} Na5 {[%emt 0:03:46]} 18. Ne5 {[%emt 0:10:13]} Rcd8 {[%emt 0:18:07]} 19. Rcd1 {[%emt 0:03:53]} Rxd7 {[%emt 0:01:07]} 20. Rxd7 {[%emt 0:01:01]} f6 {[%emt 0:10:38]} 21. Nd3 {[%emt 0:04:19]} Rb8 {[%emt 0:03:47]} 22. b4 {[%emt 0:03:21]} Bc8 {[%emt 0:00:55]} 23. Rd8+ {[%emt 0:02:08]} Kf7 {[%emt 0:01:45]} 24. bxc5 {[%emt 0:12:19]} bxc5 {[%emt 0:00:20]} 25. Nxc5 {[%emt 0:02:37]} Rxb2 {[%emt 0:02:21]} 26. Rxc8 {[%emt 0:00:03]} 1-0

[Event "4th ChessMates Murmansk 2020"]
[Site "Murmansk"]
[Date "2020.03.13"]
[Round "1.29"]
[White "Yatchenko, Leonid"]
[Black "Filimonov, Viktor"]
[Result "1-0"]
[ECO "B19"]
[WhiteElo "1705"]
[BlackElo "1481"]
[Annotator "NA RC"]
[PlyCount "117"]
[EventDate "2020.03.13"]
[EventType "team-tourn"]
[EventCountry "RUS"]
[SourceTitle "playchess.com"]
[Source "ChessBase"]
[SourceQuality "1"]
[TimeControl "5400+30"]

1. e4 {[%emt 0:00:00]} c6 {[%emt 0:00:00]} 2. d4 {[%emt 0:00:00]} d5 {[%emt 0:00:00]} 3. Nc3 {[%emt 0:00:00]} dxe4 {[%emt 0:00:00]} 4. Nxe4 {[%emt 0:00:00]} Bf5 {[%emt 0:00:24]} 5. Ng3 {[%emt 0:00:00]} Bg6 {[%emt 0:00:18]} 6. h4 {[%emt 0:00:08]} h6 {[%emt 0:00:18]} 7. Nf3 {[%emt 0:00:09]} Nd7 {[%emt 0:00:45]} 8. h5 {[%emt 0:00:09]} Bh7 {[%emt 0:00:24]} 9. Bd3 {[%emt 0:00:09]} Bxd3 {[%emt 0:00:30]} 10. Qxd3 {[%emt 0:00:10]} e6 {[%emt 0:00:23]} 11. Bd2 {[%emt 0:00:06]} Ngf6 {[%emt 0:00:37]} 12. O-O-O {[%emt 0:00:11]} Be7 {[%emt 0:00:51]} 13. Qe2 {[%emt 0:00:31]} O-O {[%emt 0:02:35]} 14. Ne5 {[%emt 0:00:20]} Rc8 {[%emt 0:05:57]} 15. Ne4 {[%emt 0:11:03]} Nxe4 {[%emt 0:00:57]} 16. Qxe4 {[%emt 0:00:43]} Nf6 {[%emt 0:00:19]} 17. Qe2 {[%emt 0:06:18]} Qd5 {[%emt 0:04:01]} 18. Kb1 {[%emt 0:13:00]} Qe4 {[%emt 0:02:52]} 19. Qxe4 {[%emt 0:02:57]} Nxe4 {[%emt 0:00:12]} 20. Be1 {[%emt 0:00:12]} Rfd8 {[%emt 0:01:54]} 21. f3 {[%emt 0:00:16]} Nd6 {[%emt 0:01:35]} 22. Bf2 {[%emt 0:00:46]} Nb5 {[%emt 0:02:55]} 23. Rd3 {[%emt 0:05:18]} Bf6 {[%emt 0:04:57]} 24. Rhd1 {[%emt 0:05:25]} Nc7 {[%emt 0:04:12]} 25. c4 {[%emt 0:00:35]} Ne8 {[%emt 0:04:52]} 26. g4 {[%emt 0:04:05]} b5 {[%emt 0:05:35]} 27. b3 {[%emt 0:07:03]} Nd6 {[%emt 0:05:17]} 28. Kc2 {[%emt 0:01:35]} Nb7 {[%emt 0:03:58]} 29. c5 {[%emt 0:03:40]} Rd5 {[%emt 0:01:30]} 30. b4 {[%emt 0:01:39]} Bxe5 {[%emt 0:08:21]} 31. dxe5 {[%emt 0:01:09]} Kf8 {[%emt 0:01:10]} 32. Ra3 {[%emt 0:03:11]} Ra8 {[%emt 0:02:30]} 33. Rxd5 {[%emt 0:01:52]} exd5 {[%emt 0:00:22]} 34. Ra6 {[%emt 0:00:09]} Nd8 {[%emt 0:02:48]} 35. Bh4 {[%emt 0:03:26]} Ne6 {[%emt 0:02:06]} 36. Kd3 {[%emt 0:01:49]} Nf4+ {[%emt 0:01:40]} 37. Kd4 {[%emt 0:00:40]} Ne6+ {[%emt 0:01:45]} 38. Ke3 {[%emt 0:00:14]} Rc8 {[%emt 0:01:51]} 39. Rxa7 {[%emt 0:00:25]} Re8 {[%emt 0:03:14]} 40. Kd3 {[%emt 0:08:29]} Nf4+ {[%emt 0:01:41]} 41. Kd2 {[%emt 0:00:08]} Kg8 {[%emt 0:02:24]} 42. Bg3 {[%emt 0:00:19]} Ne6 {[%emt 0:00:17]} 43. f4 {[%emt 0:00:19]} Rd8 {[%emt 0:02:19]} 44. Ra6 {[%emt 0:00:17]} Rc8 {[%emt 0:00:49]} 45. Ke3 {[%emt 0:05:03]} Kf8 {[%emt 0:02:42]} 46. Kd3 {[%emt 0:13:15]} Ke8 {[%emt 0:00:20]} 47. Ke3 {[%emt 0:01:08]} Kf8 {[%emt 0:00:13]} 48. Bf2 {[%emt 0:00:13]} Ke8 {[%emt 0:00:34]} 49. Kf3 {[%emt 0:00:20]} Kf8 {[%emt 0:01:11]} 50. Be3 {[%emt 0:00:18]} Ke8 {[%emt 0:02:16]} 51. Ke2 {[%emt 0:01:01]} Ke7 {[%emt 0:01:09]} 52. Kd3 {[%emt 0:00:39]} Ke8 {[%emt 0:00:52]} 53. f5 {[%emt 0:00:07]} Nf8 {[%emt 0:00:18]} 54. Kd4 {[%emt 0:00:45]} Nd7 {[%emt 0:00:28]} 55. Bf4 {[%emt 0:01:39]} Ke7 {[%emt 0:00:50]} 56. Ra7 {[%emt 0:00:09]} Ke8 {[%emt 0:01:56]} 57. e6 {[%emt 0:00:07]} fxe6 {[%emt 0:00:13]} 58. fxe6 {[%emt 0:00:09]} Nf8 {[%emt 0:00:19]} 59. Ke5 {[%emt 0:00:10]} 1-0

[Event "4th ChessMates Murmansk 2020"]
[Site "Murmansk"]
[Date "2020.03.13"]
[Round "1.30"]
[White "Simakov, Vadim"]
[Black "Zaytsev, Egor"]
[Result "0-1"]
[ECO "B22"]
[WhiteElo "1605"]
[BlackElo "1871"]
[Annotator "NA RC"]
[PlyCount "84"]
[EventDate "2020.03.13"]
[EventType "team-tourn"]
[EventCountry "RUS"]
[SourceTitle "playchess.com"]
[Source "ChessBase"]
[SourceQuality "1"]
[TimeControl "5400+30"]

1. e4 {[%emt 0:00:00]} c5 {[%emt 0:00:00]} 2. c3 {[%emt 0:00:00]} Nf6 {[%emt 0:00:00]} 3. e5 {[%emt 0:00:00]} Nd5 {[%emt 0:00:00]} 4. d4 {[%emt 0:00:00]} cxd4 {[%emt 0:00:06]} 5. cxd4 {[%emt 0:00:04]} Nc6 {[%emt 0:00:13]} 6. Bc4 {[%emt 0:00:40]} Nb6 {[%emt 0:00:13]} 7. Bb3 {[%emt 0:00:17]} d6 {[%emt 0:00:28]} 8. exd6 {[%emt 0:00:55]} Qxd6 {[%emt 0:00:09]} 9. Nf3 {[%emt 0:00:25]} Na5 {[%emt 0:03:14] [#] B22: Sicilian: 2 c3.} 10. O-O $146 {[%emt 0:01:00]} ({Predecessor:} 10. Bc2 Bg4 11. O-O Nc6 12. Be3 Rc8 13. Nc3 e6 14. Bb3 Na5 15. Bc2 Be7 16. d5 O-O 17. dxe6 Qxe6 {0-1 (49) Krauss,J (2110)-Bittner,H (1950) Bayern 1998}) 10... Nxb3 {[%emt 0:02:19]} 11. axb3 {[%emt 0:00:46]} g6 {[%emt 0:00:54]} 12. Nc3 {[%emt 0:00:31]} a6 {[%emt 0:03:57]} 13. Bg5 {[%emt 0:02:26]} h6 {[%emt 0:07:20]} 14. Bh4 {[%emt 0:00:23]} Be6 {[%emt 0:05:27]} 15. Bg3 {[%emt 0:00:23]} Qd8 {[%emt 0:00:26]} 16. Be5 {[%emt 0:01:00]} Rg8 {[%emt 0:00:57]} 17. Re1 {[%emt 0:00:41]} Bg7 {[%emt 0:01:29]} 18. Qd2 {[%emt 0:00:43]} g5 {[%emt 0:02:44]} 19. Ra3 {[%emt 0:01:17]} Nd5 {[%emt 0:07:49]} 20. Qd3 {[%emt 0:01:51]} Bxe5 {[%emt 0:03:35]} 21. Nxe5 {[%emt 0:00:20]} Rg7 {[%emt 0:01:39]} 22. Ne4 {[%emt 0:01:35]} Nf4 {[%emt 0:03:56]} 23. Qd2 {[%emt 0:01:16]} Qd5 {[%emt 0:16:18]} 24. Ra5 {[%emt 0:01:47]} b5 {[%emt 0:05:02]} 25. Nf3 {[%emt 0:01:36]} Qf5 {[%emt 0:11:44]} 26. d5 {[%emt 0:02:17]} Qg4 {[%emt 0:04:11]} 27. Ng3 {[%emt 0:00:42]} Bxd5 {[%emt 0:02:48]} 28. Ne5 {[%emt 0:00:56]} Qc8 {[%emt 0:02:34]} 29. Ne4 $2 {[%emt 0:07:06]} (29. Nh5 $1 $11 Nxh5 30. Qxd5) 29... Bxe4 {[%emt 0:01:13]} 30. Rxe4 {[%emt 0:00:16]} Qb7 {[%emt 0:00:07]} 31. f3 {[%emt 0:02:15]} (31. Qe3 $142 f5 32. Rxf4 {[%mdl 64] Remove Defender} gxf4 33. Qf3 Qxf3 34. Nxf3) 31... Rd8 {[%emt 0:00:06]} 32. Qe1 {[%emt 0:00:46]} Qb6+ {[%emt 0:02:02]} 33. Kh1 {[%emt 0:00:27]} f6 {[%emt 0:03:35]} 34. Ng4 {[%emt 0:01:53]} (34. g3 $142 fxe5 35. gxf4) 34... f5 {[%emt 0:00:47] Double Attack} 35. Rxf4 {[%emt 0:00:43]} gxf4 {[%emt 0:00:15]} 36. Nf2 {[%emt 0:00:40]} Qe3 {[%emt 0:00:14]} 37. Qf1 {[%emt 0:00:53] [#]} Rd2 $1 {[%emt 0:01:32]} 38. Rxa6 {[%emt 0:00:55]} Re2 $19 {[%emt 0:00:24]} (38... Qxf2 39. Qxb5+ {[%mdl 64] Double Attack} Kf7 40. Qxf5+ {[%mdl 64] Double Attack} Ke8 41. Ra8+ Rd8 42. Qh5+ {[%mdl 64] Double Attack} Rg6 43. Qxg6+ Kd7 44. Qf5+ {[%mdl 64] Double Attack} e6 45. Qf7+ Kc6 46. Ra6+ Qb6 47. Qxe6+ {[%mdl 64] Double Attack} Rd6 48. Rxb6+) 39. Nd3 {[%emt 0:00:58]} Qxd3 {[%emt 0:00:52]} 40. Qc1 {[%emt 0:00:53] [#]} Qc2 $1 {[%emt 0:00:08]} 41. Rc6 {[%emt 0:00:44] [#]} Re1+ $1 {[%emt 0:00:19]} 42. Qxe1 {[%emt 0:00:07]} Qxg2# {[%emt 0:00:04]} 0-1

[Event "4th ChessMates Murmansk 2020"]
[Site "Murmansk"]
[Date "2020.03.13"]
[Round "2.1"]
[White "Andrijashkin, Deniss"]
[Black "Babanin, Gleb"]
[Result "0-1"]
[ECO "B52"]
[WhiteElo "1946"]
[BlackElo "2225"]
[Annotator "ChessBase"]
[PlyCount "98"]
[EventDate "2020.03.13"]
[EventType "team-tourn"]
[EventCountry "RUS"]
[SourceTitle "playchess.com"]
[Source "ChessBase"]
[SourceQuality "1"]
[TimeControl "5400+30"]

1. e4 {[%emt 0:00:00]} c5 {[%emt 0:00:00]} 2. Nf3 {[%emt 0:00:02]} d6 {[%emt 0:00:00]} 3. Bb5+ {[%emt 0:00:05]} Bd7 {[%emt 0:00:00]} 4. Bxd7+ {[%emt 0:00:05]} Qxd7 {[%emt 0:00:02]} 5. O-O {[%emt 0:00:44]} Nc6 {[%emt 0:00:13]} 6. c3 {[%emt 0:00:55]} Nf6 {[%emt 0:00:11]} 7. Re1 {[%emt 0:00:05]} e6 {[%emt 0:00:31]} 8. d4 {[%emt 0:00:05]} cxd4 {[%emt 0:00:09]} 9. cxd4 {[%emt 0:00:01]} d5 {[%emt 0:00:06]} 10. e5 {[%emt 0:00:04]} Ne4 {[%emt 0:00:05]} 11. Nbd2 {[%emt 0:00:04]} Nxd2 {[%emt 0:00:09]} 12. Bxd2 {[%emt 0:00:03]} Be7 {[%emt 0:00:07]} 13. Rc1 {[%emt 0:00:09]} O-O {[%emt 0:00:28]} 14. Rc3 {[%emt 0:04:09]} Rfc8 {[%emt 0:01:34]} 15. a3 {[%emt 0:00:13]} Qd8 {[%emt 0:01:26]} 16. Rd3 {[%emt 0:00:39]} b5 {[%emt 0:03:38]} 17. h4 {[%emt 0:00:06]} Na5 {[%emt 0:07:35]} 18. Ng5 {[%emt 0:09:31]} Qc7 {[%emt 0:18:42]} 19. Rc3 {[%emt 0:29:04]} Qb6 {[%emt 0:00:45]} 20. Rg3 {[%emt 0:00:22]} g6 {[%emt 0:14:16]} 21. Qf3 {[%emt 0:06:07]} Rf8 {[%emt 0:01:00]} 22. Qf4 {[%emt 0:03:06]} Bxg5 {[%emt 0:13:49]} 23. hxg5 {[%emt 0:08:03]} Nc6 {[%emt 0:00:09]} 24. Bc3 {[%emt 0:05:12]} Qd8 {[%emt 0:00:37]} 25. Rh3 {[%emt 0:01:17]} Kg7 {[%emt 0:00:27]} 26. Qf6+ {[%emt 0:29:35]} Qxf6 {[%emt 0:00:25]} 27. gxf6+ {[%emt 0:00:01]} Kg8 {[%emt 0:00:05]} 28. g4 {[%emt 0:00:38]} a5 {[%emt 0:00:31]} 29. Kg2 {[%emt 0:00:05]} b4 {[%emt 0:04:33]} 30. Bd2 {[%emt 0:00:19]} h5 {[%emt 0:02:39]} 31. Bh6 {[%emt 0:01:54]} Rfc8 {[%emt 0:03:09]} 32. Bg7 {[%emt 0:01:57]} Nxd4 {[%emt 0:00:17]} 33. Reh1 {[%emt 0:00:40]} Kh7 {[%emt 0:01:43]} 34. gxh5 {[%emt 0:01:06]} g5 {[%emt 0:00:07]} 35. Rg3 {[%emt 0:00:29]} Rc2 {[%emt 0:00:22]} 36. Rxg5 {[%emt 0:00:31]} Rxb2 {[%emt 0:00:16]} 37. Rh3 {[%emt 0:00:32]} a4 {[%emt 0:00:38]} 38. Rhg3 {[%emt 0:00:28]} Rb3 {[%emt 0:01:50]} 39. R3g4 {[%emt 0:00:30]} Nf5 {[%emt 0:00:17]} 40. h6 {[%emt 0:00:31]} Rg8 {[%emt 0:00:53]} 41. axb4 {[%emt 0:00:32]} a3 {[%emt 0:00:12]} 42. b5 {[%emt 0:00:07]} d4 {[%emt 0:00:03]} 43. Rxf5 {[%emt 0:00:11]} exf5 {[%emt 0:00:04]} 44. Rxd4 {[%emt 0:00:04]} Ra8 {[%emt 0:00:12]} 45. e6 {[%emt 0:00:51]} a2 {[%emt 0:01:02]} 46. e7 {[%emt 0:00:15]} a1=Q {[%emt 0:00:43]} 47. Rd8 {[%emt 0:00:03]} Rh3 {[%emt 0:00:26]} 48. Kxh3 {[%emt 0:00:20]} Qh1+ {[%emt 0:00:04]} 49. Kg3 {[%emt 0:00:05]} Ra3+ {[%emt 0:00:04]} 0-1

[Event "4th ChessMates Murmansk 2020"]
[Site "Murmansk"]
[Date "2020.03.13"]
[Round "2.2"]
[White "Sinitsina, Anastassia"]
[Black "Vaino, Nikita"]
[Result "1-0"]
[ECO "A14"]
[WhiteElo "2125"]
[BlackElo "1788"]
[Annotator "ChessBase"]
[PlyCount "43"]
[EventDate "2020.03.13"]
[EventType "team-tourn"]
[EventCountry "RUS"]
[SourceTitle "playchess.com"]
[Source "ChessBase"]
[SourceQuality "1"]
[TimeControl "5400+30"]

1. Nf3 {[%emt 0:00:00]} d5 {[%emt 0:00:00]} 2. c4 {[%emt 0:00:00]} e6 {[%emt 0:00:00]} 3. g3 {[%emt 0:00:43]} Nf6 {[%emt 0:00:00]} 4. Bg2 {[%emt 0:00:27]} Be7 {[%emt 0:03:37]} 5. O-O {[%emt 0:00:49]} O-O {[%emt 0:00:08]} 6. b3 {[%emt 0:00:50]} b6 {[%emt 0:00:30]} 7. Bb2 {[%emt 0:00:17]} Bb7 {[%emt 0:00:08]} 8. Qc2 {[%emt 0:01:00]} c5 {[%emt 0:00:36]} 9. cxd5 {[%emt 0:00:52]} exd5 {[%emt 0:02:39]} 10. d4 {[%emt 0:00:34]} Nbd7 {[%emt 0:00:41]} 11. Nc3 {[%emt 0:01:36]} Rc8 {[%emt 0:04:00]} 12. Rad1 {[%emt 0:03:07]} Ne4 {[%emt 0:06:50]} 13. dxc5 {[%emt 0:09:41]} Rxc5 {[%emt 0:03:54]} 14. Qd3 {[%emt 0:00:22]} Ndf6 {[%emt 0:02:44]} 15. Nd4 {[%emt 0:02:32]} Ra5 {[%emt 0:08:32]} 16. a4 {[%emt 0:04:19]} Rc5 {[%emt 0:04:13]} 17. Nf5 {[%emt 0:08:14]} Rc8 {[%emt 0:11:50]} 18. Nxe4 {[%emt 0:01:57]} dxe4 {[%emt 0:01:00]} 19. Qe3 {[%emt 0:00:25]} Nd5 {[%emt 0:07:41]} 20. Qxe4 {[%emt 0:06:20]} Bf6 {[%emt 0:03:32]} 21. Ba3 {[%emt 0:02:14]} Re8 {[%emt 0:00:14]} 22. Qg4 {[%emt 0:00:15]} 1-0

[Event "4th ChessMates Murmansk 2020"]
[Site "Murmansk"]
[Date "2020.03.13"]
[Round "2.4"]
[White "Shelezhonkova, Kseniya"]
[Black "Nikitin, Arseni EST"]
[Result "0-1"]
[ECO "B23"]
[WhiteElo "1552"]
[BlackElo "1680"]
[Annotator "NA RC"]
[PlyCount "70"]
[EventDate "2020.03.13"]
[EventType "team-tourn"]
[EventCountry "RUS"]
[SourceTitle "playchess.com"]
[Source "ChessBase"]
[SourceQuality "1"]
[TimeControl "5400+30"]

1. e4 {[%emt 0:00:00]} c5 {[%emt 0:00:00]} 2. Nc3 {[%emt 0:00:00]} e6 {[%emt 0:00:00]} 3. f4 {[%emt 0:00:01]} d5 {[%emt 0:00:21]} 4. Nf3 {[%emt 0:00:08]} d4 {[%emt 0:00:30]} 5. Ne2 Nf6 6. d3 {[%emt 0:01:26]} Nc6 {[%emt 0:00:58]} 7. h3 {[%emt 0:00:32]} h5 {[%emt 0:00:27]} 8. g3 {[%emt 0:00:25]} a6 {[%emt 0:03:17]} 9. a4 {[%emt 0:02:13]} c4 {[%emt 0:03:24]} 10. Bg2 {[%emt 0:03:49]} Bc5 {[%emt 0:04:38]} 11. O-O {[%emt 0:08:20]} cxd3 {[%emt 0:02:20]} 12. cxd3 {[%emt 0:00:16]} O-O {[%emt 0:01:49]} 13. Kh1 {[%emt 0:02:12]} b6 {[%emt 0:01:33]} 14. Ng5 {[%emt 0:04:22]} e5 {[%emt 0:01:46]} 15. fxe5 {[%emt 0:09:51]} Nxe5 {[%emt 0:00:07]} 16. Bf4 {[%emt 0:00:58]} Qe7 {[%emt 0:00:19]} 17. Ng1 {[%emt 0:12:53]} Ra7 {[%emt 0:02:00]} 18. N1f3 {[%emt 0:03:23]} Ng6 {[%emt 0:03:10]} 19. b4 {[%emt 0:06:12]} Bxb4 {[%emt 0:15:32]} 20. Nxd4 {[%emt 0:00:24]} Bd7 {[%emt 0:01:41]} 21. Nc2 {[%emt 0:06:02]} Bc3 {[%emt 0:01:34]} 22. Ra3 {[%emt 0:01:46]} Be5 {[%emt 0:00:04]} 23. d4 {[%emt 0:06:30]} Bxf4 {[%emt 0:05:38]} 24. gxf4 {[%emt 0:00:10]} Rc8 {[%emt 0:00:07]} 25. Ra2 {[%emt 0:03:00]} Rac7 {[%emt 0:01:00]} 26. e5 {[%emt 0:04:43]} Ne8 {[%emt 0:04:41]} 27. Bd5 {[%emt 0:10:17]} Bc6 {[%emt 0:00:59]} 28. Bxc6 {[%emt 0:00:59]} Rxc6 {[%emt 0:00:05]} 29. d5 {[%emt 0:03:01]} Rc3 {[%emt 0:00:33]} 30. d6 {[%emt 0:02:05]} Qb7+ {[%emt 0:01:45]} 31. Kh2 {[%emt 0:00:12]} Nh4 {[%emt 0:00:44]} 32. Rf2 {[%emt 0:01:28]} f6 {[%emt 0:05:00]} 33. d7 {[%emt 0:04:55]} fxg5 {[%emt 0:00:07]} 34. dxc8=Q {[%emt 0:00:16]} Qxc8 {[%emt 0:00:18]} 35. fxg5 {[%emt 0:01:30]} Qxh3+ {[%emt 0:00:08]} 0-1

[Event "4th ChessMates Murmansk 2020"]
[Site "Murmansk"]
[Date "2020.03.13"]
[Round "2.6"]
[White "Shilnikov, Anton"]
[Black "Myskovski, Deniss"]
[Result "1-0"]
[ECO "C44"]
[WhiteElo "1769"]
[BlackElo "1205"]
[Annotator "NA RC"]
[PlyCount "55"]
[EventDate "2020.03.13"]
[EventType "team-tourn"]
[EventCountry "RUS"]
[SourceTitle "playchess.com"]
[Source "ChessBase"]
[SourceQuality "1"]
[TimeControl "5400+30"]

1. e4 {[%emt 0:00:00]} e5 {[%emt 0:00:33]} 2. Nf3 {[%emt 0:00:00]} Nc6 {[%emt 0:00:12]} 3. d4 {[%emt 0:00:00]} exd4 {[%emt 0:01:19]} 4. Bc4 {[%emt 0:00:02]} Bc5 {[%emt 0:00:39]} 5. c3 {[%emt 0:00:03]} d3 {[%emt 0:01:19]} 6. Qxd3 {[%emt 0:01:19]} d6 {[%emt 0:00:38]} 7. O-O {[%emt 0:02:03]} Be6 {[%emt 0:00:46]} 8. Bxe6 {[%emt 0:07:33]} fxe6 {[%emt 0:00:14]} 9. b4 {[%emt 0:03:37]} Bb6 {[%emt 0:00:49]} 10. Bb2 {[%emt 0:01:50]} e5 {[%emt 0:00:42]} 11. a4 {[%emt 0:04:11]} a6 {[%emt 0:00:22]} 12. Na3 {[%emt 0:00:49]} Nf6 {[%emt 0:01:36]} 13. Nc4 {[%emt 0:00:11]} Ba7 {[%emt 0:01:19]} 14. b5 {[%emt 0:00:44]} Nb8 {[%emt 0:03:30]} 15. Rad1 {[%emt 0:02:59]} Bc5 {[%emt 0:02:33]} 16. Ncxe5 {[%emt 0:02:08]} Nbd7 {[%emt 0:01:27]} 17. Nxd7 {[%emt 0:00:14]} Qxd7 {[%emt 0:01:47]} 18. e5 {[%emt 0:00:56]} dxe5 {[%emt 0:01:09]} 19. Qc4 {[%emt 0:00:29]} Qe7 {[%emt 0:10:44]} 20. Nxe5 {[%emt 0:01:23]} Bd6 {[%emt 0:01:24]} 21. f4 {[%emt 0:02:57]} Nd7 {[%emt 0:07:16]} 22. Nxd7 {[%emt 0:01:22]} Kxd7 {[%emt 0:01:07]} 23. Rfe1 {[%emt 0:00:22]} Qf6 {[%emt 0:03:07]} 24. b6 {[%emt 0:00:11]} Kc8 {[%emt 0:03:29]} 25. Ba3 {[%emt 0:00:43]} Qxf4 {[%emt 0:03:12]} 26. Qe6+ {[%emt 0:00:07]} Kd8 {[%emt 0:06:50]} 27. Bxd6 {[%emt 0:00:38]} cxd6 {[%emt 0:00:55]} 28. Rxd6+ {[%emt 0:00:05]} 1-0